bitfinex-derivatives/quotes_ETHF0:USTF0_20240905
["timestamp","ask_amount","ask_price","bid_price","bid_amount"]
[1725548849192,3.07140399,2381.9,2381.4,4.96992]
[1725548849391,2.65154399,2381.6,2381.5,0.41992]
[1725548849591,2.65154399,2381.6,2381.4,4.96993]
[1725548849790,0.00629564,2382.2,2381.4,4.55]
[1725548849791,0.42609564,2382.2,2381.4,4.55]
[1725548849992,2.65154399,2381.7,2381.6,0.4199]
[1725548850397,5.34598135,2381.7,2381.4,4.55]
[1725548850588,2.65154399,2381.7,2381.6,0.4199]
[1725548850895,0.00629564,2382.2,2381.6,7.7578]
[1725548851101,2.700733,2382.2,2382.1,0.41981]
[1725548851489,0.00629564,2382.2,2382.1,0.41981]
[1725548851688,2.700733,2382.2,2382.0,4.55]
[1725548851899,2.700733,2382.2,2382.0,4.96982]
[1725548852203,2.700733,2382.2,2382.0,4.55]
[1725548852399,2.700733,2382.2,2382.1,0.41981]
[1725548852598,0.00629564,2382.2,2382.1,0.41981]
[1725548852801,0.00629564,2382.2,2382.1,4.83053459]
[1725548853100,0.00629564,2382.2,2382.1,5.88007459]
[1725548853295,5.64e-06,2382.2,2382.1,20.68394526]
[1725548854000,5.64e-06,2382.2,2382.1,13.63440526]
[1725548854391,5.64e-06,2382.2,2382.1,9.22368067]
[1725548854600,5.64e-06,2382.2,2382.1,0.41981]
[1725548855397,5.64e-06,2382.2,2382.1,11.66695]
[1725548855600,5.64e-06,2382.2,2382.1,13.2339829]
[1725548855898,5.64e-06,2382.2,2382.1,20.2835229]
[1725548856604,5.64e-06,2382.2,2382.1,23.7835229]
[1725548856896,5.64e-06,2382.2,2382.1,24.8330629]
[1725548857098,5.64e-06,2382.2,2382.1,32.49187959]
[1725548857896,1.1473,2383.2,2383.1,0.41964]
[1725548858100,1.1473,2383.2,2382.2,1.04949]
[1725548858101,3.84173736,2383.2,2382.8,4.55]
[1725548858304,3.84173736,2383.2,2383.0,0.41965]
[1725548858698,3.84173736,2383.2,2383.1,0.41964]
[1725548859396,7.04953736,2383.2,2383.1,0.41964]
[1725548859597,7.04953736,2383.2,2383.0,0.41964]
[1725548859901,7.04953736,2383.2,2383.0,0.41966]
[1725548860290,7.04953736,2383.2,2383.1,0.41964]
[1725548860501,3.84173736,2383.2,2383.1,0.41964]
[1725548861098,3.84173736,2383.2,2383.0,0.41964]
[1725548861498,3.84173736,2383.2,2383.0,0.41965]
[1725548862013,3.84173736,2383.2,2383.1,0.41964]
[1725548862504,2.69443736,2383.2,2383.1,0.41964]
[1725548862803,2.69443736,2383.2,2382.9,6.7078]
[1725548863106,2.69443736,2383.2,2383.1,0.41964]
[1725548864996,0.00629564,2383.4,2383.1,6.01874]
[1725548865202,2.700733,2383.4,2383.3,0.4196]
[1725548865799,0.00629564,2383.4,2383.3,6.71362]
[1725548866011,0.00629564,2383.4,2383.3,21.74622637]
[1725548866201,0.00430958,2383.4,2383.3,21.74622637]
[1725548866505,0.00430958,2383.4,2383.3,9.66340745]
[1725548866900,0.00430958,2383.4,2383.3,0.63080108]
[1725548867203,0.00430958,2383.4,2383.3,0.4196]
[1725548867803,2.69874694,2383.4,2383.3,0.4196]
[1725548868007,2.69874694,2383.4,2383.1,4.55629564]
[1725548868210,2.69874694,2383.4,2383.1,0.00629564]
[1725548868503,2.69874694,2383.4,2383.2,0.41961]
[1725548868712,2.69874694,2383.4,2383.3,0.4196]
[1725548868902,2.69874694,2383.4,2383.2,0.41961]
[1725548869101,2.69874694,2383.4,2383.3,0.4196]
[1725548869601,0.00430958,2383.4,2383.3,0.4196]
[1725548870913,2.69874694,2383.4,2383.3,0.4196]
[1725548871106,0.41961,2383.3,2383.1,4.55629564]
[1725548871311,2.69874694,2383.4,2383.1,4.55629564]
[1725548871622,3.11832694,2383.4,2383.1,8.18371564]
[1725548871809,3.11832694,2383.4,2383.2,0.41962]
[1725548872011,2.69874694,2383.4,2383.2,0.41962]
[1725548872313,2.69874694,2383.4,2383.3,0.4196]
[1725548873510,0.00430958,2383.4,2383.3,1.46861]
[1725548873807,0.00430958,2383.4,2383.3,0.4196]
[1725548875516,0.00430958,2383.4,2383.3,11.66461]
[1725548876710,0.00430958,2383.4,2383.3,12.71362]
[1725548877111,0.00430958,2383.4,2383.3,11.66461]
[1725548877414,0.00430958,2383.4,2383.3,5.66461]
[1725548877615,0.00430958,2383.4,2383.3,11.66461]
[1725548878117,0.00430958,2383.4,2383.3,0.4196]
[1725548878818,0.00430958,2383.4,2383.3,1.46861]
[1725548879126,0.00430958,2383.4,2383.3,5.66461]
[1725548880808,2.69874694,2383.4,2383.3,0.4196]
[1725548881317,2.69874694,2383.4,2382.9,3.5]
[1725548881318,0.41967,2382.9,2382.8,3.2078]
[1725548881515,3.43464,2383.3,2382.8,3.2078]
[1725548881817,0.41966,2383.0,2382.8,3.2078]
[1725548882007,6.12907736,2383.3,2382.8,3.2078]
[1725548882008,5.08003736,2383.3,2382.8,3.2078]
[1725548882206,3.2078,2383.1,2382.4,4.35]
[1725548882408,0.41973,2382.6,2382.5,0.00200795]
[1725548882608,4.25707,2382.8,2382.0,6.7078]
[1725548882609,1.04928,2382.7,2382.0,6.7078]
[1725548882808,3.2078,2382.1,2381.8,4.76986]
[1725548883019,3.2078,2382.1,2381.8,4.35]
[1725548883215,0.41984,2382.0,2381.6,4.35]
[1725548883515,3.62762,2382.1,2381.6,4.35]
[1725548883718,3.21409564,2382.1,2381.9,4.35]
[1725548883920,3.21409564,2382.1,2382.0,0.41983]
[1725548884111,0.00629564,2382.1,2382.0,0.41983]
[1725548884315,0.00629564,2382.1,2381.9,4.54]
[1725548884518,0.00629564,2382.1,2381.5,4.76419918]
[1725548884820,0.00629564,2382.1,2381.5,4.54]
[1725548884821,3.2078,2382.0,2381.5,4.54]
[1725548885016,3.2078,2382.0,2381.5,4.9599]
[1725548885215,0.00629564,2382.1,2381.5,4.54]
[1725548885520,3.62764,2382.0,2381.5,4.54]
[1725548885718,3.2078,2382.0,2381.5,4.54]
[1725548886110,3.2078,2382.0,2381.4,3.5]
[1725548886312,3.2078,2381.7,2380.8,4.75490091]
[1725548886512,3.2078,2381.3,2380.8,5.17493091]
[1725548886710,1.1379,2381.2,2380.8,8.25490091]
[1725548887114,1.1379,2381.2,2380.8,3.5]
[1725548887315,3.2078,2380.9,2380.4,4.54]
[1725548887511,0.00629564,2380.9,2380.8,4.96004]
[1725548887715,1.221,2381.6,2381.3,0.41995]
[1725548887921,1.221,2381.6,2381.4,0.41994]
[1725548888113,1.221,2381.6,2381.1,4.54]
[1725548888615,1.22729564,2381.6,2381.1,4.54629564]
[1725548888817,1.22729564,2381.6,2381.2,0.41996]
[1725548889017,1.22729564,2381.6,2381.1,4.54629564]
[1725548889218,1.22729564,2381.6,2381.1,0.00629564]
[1725548889417,1.22729564,2381.6,2381.2,0.41996]
[1725548889619,1.22729564,2381.6,2381.3,0.41995]
[1725548889817,1.22729564,2381.6,2381.4,0.41992]
[1725548890023,1.22729564,2381.6,2381.1,4.54629564]
[1725548890225,3.2078,2381.4,2381.1,4.96627564]
[1725548890619,3.2078,2381.4,2381.1,4.54629564]
[1725548890923,3.2078,2381.4,2381.1,4.96627564]
[1725548891129,3.2078,2381.4,2381.1,4.54629564]
[1725548891424,3.2078,2381.4,2381.1,0.00629564]
[1725548892524,3.2078,2381.4,2381.1,0.42628564]
[1725548893026,3.2078,2381.4,2381.1,0.00629564]
[1725548893324,3.2078,2381.4,2381.1,0.42628564]
[1725548893514,3.2078,2381.4,2381.1,0.00629564]
[1725548894420,3.2078,2381.3,2381.1,0.42627564]
[1725548894921,0.00629564,2381.6,2381.3,1.04989]
[1725548895121,0.00629564,2381.6,2381.5,4.95992]
[1725548895328,3.2078,2382.8,2381.7,1.4696]
[1725548895520,3.2078,2382.4,2382.1,8.04]
[1725548895717,4.4076,2383.0,2382.1,8.04]
[1725548895917,3.2078,2382.7,2382.3,0.41978]
[1725548896227,0.4197,2382.8,2382.3,0.41978]
[1725548896228,3.6275,2382.8,2382.3,0.41977]
[1725548896525,0.00629564,2382.8,2382.3,0.00629564]
[1725548896922,0.00629564,2382.8,2382.6,0.41971]
[1725548897515,0.00629564,2382.8,2382.5,0.41974]
[1725548897724,0.00629564,2382.8,2382.3,0.00629564]
[1725548897725,3.21409564,2382.8,2382.3,0.00629564]
[1725548898226,0.00629564,2382.8,2382.3,0.00629564]
[1725548898425,0.00629564,2382.8,2382.5,0.41974]
[1725548898623,0.00629564,2382.8,2382.3,0.00629564]
[1725548898923,0.00629564,2382.8,2382.5,4.54]
[1725548899125,0.00629564,2382.8,2382.5,4.95974]
[1725548899326,0.00629564,2382.8,2382.6,0.41972]
[1725548899629,0.00629564,2382.8,2382.7,0.41971]
[1725548900016,0.00629564,2382.8,2382.5,4.54]
[1725548901327,0.00629564,2382.8,2382.5,4.95974]
[1725548901528,0.00629564,2382.8,2382.5,4.54]
[1725548901722,0.00629564,2382.8,2382.6,0.41972]
[1725548901916,0.00629564,2382.8,2382.5,4.54]
[1725548902123,0.00629564,2382.8,2382.7,0.41971]
[1725548902526,0.00629564,2382.8,2382.7,4.61651]
[1725548902728,3.2078,2383.4,2382.7,4.1968]
[1725548903029,3.2078,2383.6,2383.1,4.95963]
[1725548903221,3.62735,2383.6,2383.1,0.63381315]
[1725548903527,3.2078,2383.3,2382.7,4.54]
[1725548903723,0.00629564,2383.2,2382.7,4.54]
[1725548904229,0.00629564,2383.2,2382.8,3.91969]
[1725548904531,0.41965,2383.1,2382.8,3.5]
[1725548904740,1.65164,2383.1,2382.5,0.41973]
[1725548904939,3.2078,2383.0,2382.6,0.41972]
[1725548905121,3.2078,2383.0,2382.6,3.5]
[1725548905430,6.06835,2383.1,2382.6,3.5]
[1725548905730,5.6487,2383.1,2382.6,3.5]
[1725548905935,6.06834,2383.1,2382.6,3.5]
[1725548906129,5.6487,2383.1,2382.4,4.54]
[1725548906428,0.00629564,2383.2,2382.4,4.54]
[1725548906429,3.2078,2382.8,2382.4,4.54]
[1725548906635,0.41967,2382.9,2382.4,4.54]
[1725548906933,3.2078,2382.7,2382.3,0.42607564]
[1725548907134,0.00629564,2383.2,2382.4,4.54]
[1725548907332,3.2078,2383.0,2382.4,4.54]
[1725548907530,3.2078,2383.0,2382.5,0.41973]
[1725548907827,3.62746,2383.0,2382.5,0.41973]
[1725548908030,3.2078,2383.0,2382.5,0.41973]
[1725548908234,3.2078,2383.0,2382.5,0.41974]
[1725548908631,3.2078,2383.0,2382.4,4.54]
[1725548908830,3.2078,2383.0,2382.4,4.95976]
[1725548908831,0.41968,2382.9,2382.4,4.95976]
[1725548909035,3.2078,2383.0,2382.6,0.41971]
[1725548909240,0.00629564,2383.2,2382.4,4.54]
[1725548909528,3.62746,2383.0,2382.5,0.41974]
[1725548909723,0.00629564,2383.2,2382.4,4.54]
[1725548909928,0.00629564,2383.2,2382.5,1.04937]
[1725548910128,0.00629564,2383.2,2382.7,0.4197]
[1725548910129,0.42591564,2383.2,2382.7,0.4197]
[1725548910329,0.00629564,2383.2,2382.8,0.41969]
[1725548910745,0.00629564,2383.2,2382.8,0.41968]
[1725548910938,0.00629564,2383.2,2382.4,9.28085556]
[1725548910939,0.42592564,2383.2,2382.7,0.4197]
[1725548911332,0.00629564,2383.2,2382.5,1.04937]
[1725548911627,0.41964,2383.1,2382.4,9.28085556]
[1725548911827,0.00629564,2383.2,2382.7,0.4197]
[1725548912137,3.2078,2383.0,2382.4,4.35]
[1725548912326,3.2078,2383.0,2382.3,0.00629564]
[1725548912635,0.4197,2382.8,2382.3,0.00629564]
[1725548912838,3.62746,2383.0,2382.6,0.41972]
[1725548913038,0.00629564,2383.2,2382.7,4.35]
[1725548913540,0.00629564,2383.2,2382.4,4.35]
[1725548913732,0.41972,2382.7,2382.4,4.35]
[1725548914044,3.2078,2382.9,2382.8,0.41969]
[1725548914240,0.00629564,2383.2,2383.1,0.41964]
[1725548914430,4.20229564,2383.2,2382.9,4.35]
[1725548914625,0.00629564,2383.2,2383.0,0.41964]
[1725548914829,0.42592564,2383.2,2382.8,0.41968]
[1725548915033,0.00629564,2383.2,2383.0,0.41964]
[1725548915236,0.42592564,2383.2,2382.8,0.41968]
[1725548915429,0.42592564,2383.2,2382.7,4.35]
[1725548915430,0.41964,2383.1,2382.7,4.35]
[1725548915635,0.41966,2383.0,2382.7,4.35]
[1725548915836,3.62745,2383.1,2382.8,0.41969]
[1725548916037,3.2078,2383.1,2382.9,0.41967]
[1725548916237,0.00629564,2383.2,2383.1,0.41964]
[1725548916432,0.42591564,2383.2,2382.9,0.41966]
[1725548917543,0.00629564,2383.2,2383.0,0.41964]
[1725548917844,0.00629564,2383.2,2383.1,0.41964]
[1725548918243,4.20229564,2383.2,2383.1,0.41964]
[1725548918544,4.20229564,2383.2,2382.7,4.35]
[1725548918745,0.42591564,2383.2,2382.7,4.35]
[1725548919043,0.00629564,2383.2,2382.7,4.35]
[1725548919343,0.00629564,2383.2,2383.1,0.41964]
[1725548919536,4.20229564,2383.2,2383.1,0.41964]
[1725548920438,0.00629564,2383.2,2383.1,0.41964]
[1725548920641,0.00629564,2383.2,2383.1,4.61564]
[1725548920842,4.4554,2384.1,2383.2,1.04906]
[1725548921035,1.6669,2384.5,2384.0,4.35]
[1725548921241,0.41942,2384.4,2384.0,4.35]
[1725548921437,0.41942,2384.4,2383.9,3.5]
[1725548921438,0.41948,2384.0,2383.9,3.5]
[1725548921638,3.2078,2384.1,2383.9,3.5]
[1725548921943,3.2078,2384.1,2383.8,0.00629564]
[1725548922143,0.41947,2384.1,2383.8,0.00629564]
[1725548922343,0.41948,2384.1,2383.8,0.00629564]
[1725548922540,0.42574564,2384.2,2383.8,0.42580564]
[1725548922739,0.42574564,2384.2,2383.8,0.42579564]
[1725548922944,0.00629564,2384.2,2383.8,0.00629564]
[1725548923145,0.00629564,2384.2,2383.8,4.35629564]
[1725548923347,0.00629564,2384.2,2384.0,0.41946]
[1725548923539,0.00629564,2384.2,2384.1,0.41946]
[1725548923845,0.00629564,2384.2,2384.0,0.41947]
[1725548924442,0.42573564,2384.2,2383.8,4.77579564]
[1725548924645,3.2078,2384.1,2383.8,0.00629564]
[1725548924842,3.62727,2384.1,2383.8,0.00629564]
[1725548925037,3.2078,2384.1,2383.8,0.42580564]
[1725548925334,0.41947,2384.1,2383.8,0.00629564]
[1725548925539,3.2078,2384.1,2383.8,0.00629564]
[1725548925747,0.4195,2383.9,2383.8,0.00629564]
[1725548925948,7.04875,2383.9,2383.3,4.35]
[1725548926142,3.2078,2383.5,2383.0,7.5578]
[1725548926342,0.41956,2383.6,2383.1,3.5]
[1725548926543,1.04884,2383.7,2383.1,0.41963]
[1725548926739,3.62737,2383.5,2383.0,7.5578]
[1725548927050,5.60612,2383.8,2383.0,7.56409564]
[1725548927438,0.41956,2383.6,2383.3,0.4196]
[1725548927842,4.5573,2383.8,2383.4,0.41958]
[1725548927843,0.41954,2383.7,2383.4,0.41958]
[1725548928049,0.41955,2383.6,2383.3,4.76959]
[1725548928347,4.5573,2383.8,2383.3,4.76959]
[1725548928546,0.41954,2383.7,2383.4,0.41958]
[1725548928741,4.5573,2383.8,2383.3,4.35]
[1725548928742,5.60612,2383.8,2383.3,4.35]
[1725548928944,3.62738,2383.5,2383.2,0.41961]
[1725548929142,4.5573,2383.8,2383.2,4.35]
[1725548929343,0.41954,2383.7,2383.4,0.41958]
[1725548929550,4.5573,2383.8,2383.3,0.41959]
[1725548929847,1.04887,2383.7,2383.2,4.35]
[1725548930043,0.41959,2383.4,2383.2,4.35]
[1725548930245,3.2078,2383.5,2383.0,4.77594564]
[1725548930645,0.41961,2383.3,2383.0,4.77594564]
[1725548931051,3.2078,2383.5,2383.0,0.00629564]
[1725548931345,0.41964,2383.1,2383.0,0.00629564]
[1725548931657,1.46874,2383.1,2383.0,0.00629564]
[1725548931855,0.41971,2382.7,2382.3,3.87]
[1725548932149,0.41971,2382.7,2382.4,0.41976]
[1725548932345,0.41972,2382.7,2382.3,3.87]
[1725548932546,0.41972,2382.7,2382.4,0.41975]
[1725548933452,0.42599564,2382.8,2382.5,0.41974]
[1725548933651,0.00629564,2382.8,2382.3,0.00629564]
[1725548933950,0.42599564,2382.8,2382.5,0.41974]
[1725548934135,0.42599564,2382.8,2382.7,0.41971]
[1725548934136,0.00629564,2382.8,2382.7,0.41971]
[1725548934340,0.00629564,2382.8,2382.7,4.28971]
[1725548936439,0.00629564,2382.8,2382.6,0.41972]
[1725548936641,0.41971,2382.7,2382.5,3.87]
[1725548936839,0.41971,2382.7,2382.3,0.42606564]
[1725548936840,3.2078,2382.7,2382.3,0.42606564]
[1725548937048,3.2078,2382.7,2382.3,0.00629564]
[1725548937444,3.2078,2382.7,2382.4,0.41976]
[1725548938049,0.00629564,2382.8,2382.5,3.87]
[1725548938250,0.00629564,2382.8,2382.7,0.41971]
[1725548938551,0.00629564,2382.8,2382.7,4.28971]
[1725548940442,0.00629564,2382.8,2382.7,3.87]
[1725548940752,0.00629564,2382.8,2382.7,0.41971]
[1725548941249,7.05149737,2383.3,2382.7,0.41971]
[1725548941250,3.2078,2383.3,2383.2,0.41962]
[1725548941557,0.41955,2383.6,2383.2,4.07772279]
[1725548941851,5.35168737,2383.7,2383.2,0.20772279]
[1725548942056,0.41957,2383.5,2383.1,0.41963]
[1725548942252,0.41961,2383.3,2382.9,0.41966]
[1725548942443,0.41961,2383.3,2382.9,0.41967]
[1725548942646,3.62739,2383.4,2383.0,0.41964]
[1725548942951,2.15018301,2383.5,2383.2,3.87]
[1725548943253,0.00629564,2383.5,2383.4,0.41958]
[1725548944547,0.00629564,2383.5,2383.3,0.41959]
[1725548944751,0.00629564,2383.5,2383.4,0.41958]
[1725548945647,0.00629564,2383.5,2383.3,0.41959]
[1725548945850,0.00629564,2383.5,2383.4,0.41958]
[1725548946055,0.00629564,2383.5,2383.3,0.41959]
[1725548946260,0.42587564,2383.5,2383.1,0.41963]
[1725548946557,0.00629564,2383.5,2382.9,4.09887772]
[1725548946757,0.00629564,2383.5,2382.9,4.30505549]
[1725548947061,0.00629564,2383.5,2383.3,0.41959]
[1725548947254,0.42586564,2383.5,2383.2,0.41961]
[1725548947555,5.35168737,2383.4,2382.5,0.41973]
[1725548947754,2.56351737,2383.2,2382.8,0.41969]
[1725548947952,3.19291737,2383.3,2382.7,0.4197]
[1725548948255,3.62749,2382.9,2382.5,0.41973]
[1725548948459,3.62749,2382.9,2382.3,0.00629564]
[1725548948460,3.2078,2382.9,2382.3,0.00629564]
[1725548948646,0.41973,2382.6,2382.3,0.00629564]
[1725548948850,3.62753,2382.6,2382.3,0.42606564]
[1725548949265,0.41976,2382.4,2382.3,0.00629564]
[1725548949762,4.61736,2382.4,2382.3,0.00629564]
[1725548949947,12.34148737,2382.4,2381.9,0.41984]
[1725548950149,2.14388737,2382.5,2382.0,0.41982]
[1725548950358,2.14388737,2382.5,2381.9,3.87]
[1725548950556,4.477,2382.6,2382.5,0.41974]
[1725548950754,5.35168737,2382.9,2382.6,0.41971]
[1725548950959,3.2078,2382.9,2382.7,0.41971]
[1725548951358,3.2078,2382.9,2382.5,0.00629564]
[1725548951657,3.2078,2382.9,2382.6,0.41973]
[1725548952159,3.2078,2382.9,2382.5,0.00629564]
[1725548952160,7.4046,2382.9,2382.5,0.00629564]
[1725548952364,0.41972,2382.7,2382.5,0.00629564]
[1725548952659,3.62753,2382.6,2382.5,0.00629564]
[1725548953163,7.82433,2382.6,2382.5,0.00629564]
[1725548953455,2.14388737,2382.8,2382.5,0.00629564]
[1725548953456,2.14388737,2382.8,2382.6,0.41973]
[1725548953660,3.2078,2382.9,2382.5,0.00629564]
[1725548953661,0.41973,2382.6,2382.5,0.00629564]
[1725548953859,5.77141737,2382.6,2382.5,0.00629564]
[1725548954169,1.04941,2382.4,2381.7,0.21071404]
[1725548954357,3.6276,2382.2,2381.9,0.41985]
[1725548954659,1.3719,2382.3,2381.8,3.5]
[1725548954856,1.3719,2382.3,2382.1,0.41981]
[1725548955058,1.3719,2382.3,2381.7,4.08071404]
[1725548955059,4.1976,2382.2,2382.0,0.00629564]
[1725548955261,1.3719,2382.3,2382.1,0.41981]
[1725548955455,1.79168,2382.3,2382.0,0.42611564]
[1725548955655,0.00629564,2382.4,2382.0,0.42611564]
[1725548955656,0.00629564,2382.4,2382.2,0.4198]
[1725548956067,0.42605564,2382.4,2382.1,0.4198]
[1725548956266,0.41978,2382.3,2382.0,0.42611564]
[1725548956559,0.00629564,2382.4,2382.3,0.41978]
[1725548957558,0.00629564,2382.4,2382.0,3.87629564]
[1725548957958,0.00629564,2382.4,2382.2,0.41978]
[1725548958158,0.41979,2382.3,2382.0,0.00629564]
[1725548958363,0.41981,2382.1,2382.0,0.00629564]
[1725548958558,0.4198,2382.2,2382.0,0.00629564]
[1725548959161,3.2078,2382.3,2382.0,0.00629564]
[1725548959364,0.4198,2382.2,2382.0,0.42612564]
[1725548959563,0.41981,2382.1,2382.0,0.00629564]
[1725548959756,0.41981,2382.2,2382.0,0.00629564]
[1725548959965,0.41981,2382.1,2382.0,0.00629564]
[1725548960864,4.61821,2382.1,2382.0,0.00629564]
[1725548961273,5.66775,2382.1,2382.0,0.00629564]
[1725548961869,4.61821,2382.1,2382.0,0.00629564]
[1725548962661,1.2581,2382.2,2382.0,0.00629564]
[1725548962662,1.67791,2382.2,2382.0,0.00629564]
[1725548962869,1.67791,2382.2,2382.0,0.42611564]
[1725548963164,0.00629564,2382.4,2382.0,0.00629564]
[1725548963373,3.2078,2382.3,2382.0,0.00629564]
[1725548963567,0.41981,2382.1,2382.0,0.00629564]
[1725548964172,0.00629564,2382.4,2382.1,0.41981]
[1725548964361,0.4198,2382.2,2382.0,0.42611564]
[1725548964569,3.2078,2382.3,2382.1,0.4198]
[1725548964765,0.4198,2382.2,2382.0,0.42611564]
[1725548964971,3.2078,2382.3,2382.0,0.42611564]
[1725548964972,0.41981,2382.1,2382.0,0.00629564]
[1725548965168,0.41981,2382.2,2382.0,0.00629564]
[1725548965370,0.41981,2382.2,2382.0,0.42612564]
[1725548965870,4.61741,2382.1,2382.0,0.00629564]
[1725548966062,1.04959,2382.0,2381.5,3.5]
[1725548966265,0.4199,2381.6,2381.5,0.41992]
[1725548966563,0.41988,2381.7,2381.5,0.41992]
[1725548966768,0.4199,2381.6,2381.4,0.41992]
[1725548966971,0.4199,2381.7,2381.5,0.41992]
[1725548968760,0.4199,2381.7,2381.5,0.41991]
[1725548969069,4.5479,2381.8,2381.7,0.41988]
[1725548969070,3.2078,2381.8,2381.7,0.41988]
[1725548969574,2.6829,2382.2,2381.7,4.1984]
[1725548969871,2.6829,2382.2,2381.8,0.41985]
[1725548970071,0.41984,2382.0,2381.8,0.41985]
[1725548970268,0.41986,2381.9,2381.6,0.41989]
[1725548970465,1.04954,2382.1,2381.3,4.91987]
[1725548970466,0.41989,2381.7,2381.5,0.41991]
[1725548971070,3.2078,2382.0,2381.3,4.91988]
[1725548971272,3.2078,2382.0,2381.5,1.04979]
[1725548971473,3.2078,2382.0,2381.5,1.04981]
[1725548971669,3.62764,2382.0,2381.7,0.41987]
[1725548971866,3.62764,2382.0,2381.6,1.04973]
[1725548971867,3.2078,2382.0,2381.6,1.04973]
[1725548972069,3.2078,2382.0,2381.9,0.41985]
[1725548974375,0.00629564,2382.4,2382.3,0.41978]
[1725548974772,0.00629564,2382.4,2382.2,0.41978]
[1725548974972,0.00629564,2382.4,2382.3,0.41978]
[1725548978382,1.6073982,2383.1,2382.4,1.04941]
[1725548978584,1.6073982,2383.3,2382.6,3.87]
[1725548978783,1.04906,2383.2,2382.6,0.41971]
[1725548978983,0.4197,2382.8,2382.5,1.72573]
[1725548979181,0.4197,2382.8,2382.5,0.41973]
[1725548979375,0.41973,2382.6,2382.4,0.00629564]
[1725548979573,0.41974,2382.5,2382.4,0.00629564]
[1725548979773,4.25709,2382.7,2382.4,0.00629564]
[1725548979981,0.41974,2382.6,2382.4,0.00629564]
[1725548980280,0.41974,2382.5,2382.4,0.00629564]
[1725548980582,4.25709,2382.7,2381.7,8.6657]
[1725548980583,0.41983,2382.0,2381.7,8.6657]
[1725548980774,0.41983,2382.0,2381.8,0.41986]
[1725548980973,0.41983,2382.0,2381.6,3.87]
[1725548981174,0.41982,2382.1,2381.6,7.37]
[1725548981378,1.6073982,2382.3,2381.6,7.37]
[1725548981379,0.41984,2382.0,2381.6,7.37]
[1725548981585,0.41983,2382.1,2381.8,0.41986]
[1725548981889,1.04947,2382.3,2381.6,7.37]
[1725548982087,0.41982,2382.1,2381.8,0.41985]
[1725548982274,0.41983,2382.0,2381.8,0.41985]
[1725548982474,1.04947,2382.3,2381.8,0.41985]
[1725548982475,0.41982,2382.1,2381.8,0.41985]
[1725548982782,0.41982,2382.1,2381.6,7.37]
[1725548982982,4.8151982,2382.4,2382.0,0.41982]
[1725548983177,1.6073982,2382.5,2381.7,1.04971]
[1725548983374,0.41979,2382.3,2382.1,0.41981]
[1725548983581,0.4198,2382.2,2382.0,0.41982]
[1725548983787,0.4198,2382.2,2381.7,1.04971]
[1725548983788,0.41979,2382.3,2381.7,1.04971]
[1725548983987,3.62757,2382.4,2381.8,1.04967]
[1725548984175,3.62757,2382.4,2382.1,0.4198]
[1725548984575,0.41976,2382.5,2382.2,0.41979]
[1725548984783,0.41976,2382.5,2381.9,1.04962]
[1725548984989,1.6073982,2382.6,2382.0,1.04957]
[1725548985281,0.41976,2382.4,2381.9,1.04962]
[1725548985483,0.41979,2382.3,2381.7,2.37959]
[1725548985687,0.41981,2382.1,2381.9,0.41984]
[1725548985990,0.4198,2382.3,2382.0,0.41983]
[1725548986281,1.04941,2382.4,2381.8,4.25746]
[1725548986282,0.41977,2382.4,2381.8,4.25746]
[1725548986481,0.41978,2382.3,2381.8,4.25746]
[1725548986688,1.04941,2382.4,2381.9,0.41984]
[1725548986884,1.04941,2382.4,2381.6,3.5]
[1725548986885,3.2078,2382.3,2381.6,3.5]
[1725548987081,0.41982,2382.1,2381.9,0.41984]
[1725548987276,0.41985,2382.0,2381.7,0.41988]
[1725548987575,0.41983,2382.1,2381.9,0.41984]
[1725548987779,0.41983,2382.0,2381.6,3.5]
[1725548988286,1.04963,2381.9,2381.3,5.2239]
[1725548988484,0.41989,2381.7,2381.5,0.41992]
[1725548988679,1.04963,2381.9,2381.5,0.41992]
[1725548988880,0.41988,2381.8,2381.5,0.41992]
[1725548989192,0.41988,2381.8,2381.6,0.4199]
[1725548989584,7.4062,2381.7,2381.3,3.5]
[1725548989778,0.41991,2381.6,2381.2,0.41996]
[1725548990089,0.00629564,2381.6,2381.1,3.2078]
[1725548990290,0.00629564,2381.6,2381.5,0.41992]
[1725548991791,0.00629564,2381.6,2381.4,0.41992]
[1725548991992,0.42620564,2381.6,2381.2,3.2078]
[1725548992294,2.0273382,2381.4,2381.0,0.42]
[1725548992482,1.6073982,2381.4,2381.0,0.42]
[1725548992686,2.0273482,2381.4,2381.1,0.41998]
[1725548992987,1.6073982,2381.4,2381.0,3.5]
[1725548993191,1.6073982,2381.4,2381.1,0.41998]
[1725548993487,1.6073982,2381.3,2381.0,0.42]
[1725548993787,6.0974982,2381.4,2381.1,0.41998]
[1725548993987,1.6073982,2381.3,2381.1,0.41998]
[1725548994188,6.5174382,2381.4,2381.1,0.41998]
[1725548994402,1.6073982,2381.3,2381.1,0.41998]
[1725548994686,2.0273582,2381.3,2381.0,0.42]
[1725548995087,0.41999,2381.1,2380.9,0.42001]
[1725548995390,3.62779,2381.1,2380.8,0.42003]
[1725548995591,3.62779,2381.1,2380.7,3.42242328]
[1725548995592,3.2078,2381.1,2380.7,3.42242328]
[1725548995893,2.0273782,2381.2,2380.9,0.42002]
[1725548996090,1.6073982,2381.2,2381.0,0.42]
[1725548996285,3.4265582,2381.3,2381.0,0.41999]
[1725548996485,1.6073982,2381.3,2381.0,0.21458127]
[1725548996692,4.4901,2381.4,2381.3,0.41995]
[1725548997095,6.0974982,2381.4,2381.3,0.41995]
[1725548997481,6.0974982,2381.4,2381.0,0.20668361]
[1725548997789,6.0974982,2381.4,2381.3,0.41995]
[1725548997790,4.4901,2381.4,2381.3,0.41995]
[1725548997990,4.91004,2381.4,2381.1,0.41997]
[1725548998195,6.0974982,2381.4,2380.7,7.28353841]
[1725548998389,6.0974982,2381.4,2380.9,0.42001]
[1725548998390,0.41999,2381.1,2380.9,0.42001]